fUSD/lending_fUSD_20241122
["ID","MTS","AMOUNT","RATE_DAILY","PERIOD"]
[343031688,1732297837947,-118398.05256891,0.0007,30]
[343031690,1732297837963,-25271.59717235,0.0007,30]
[343031692,1732297837973,-150.0,0.00071645,2]
[343031693,1732297837983,-250.0,0.00072383,120]
[343031695,1732297837992,-9760.62,0.00072397,2]
[343031696,1732297838001,-1000.0,0.00072404,120]
[343031697,1732297838011,-454.597,0.0007248,120]
[343031698,1732297838020,-5339.0,0.00072653,2]
[343031699,1732297838030,-180.94,0.00072669,2]
[343031700,1732297838040,-241.29,0.00072698,2]
[343031701,1732297838049,-150.1,0.00072744,2]
[343031702,1732297838062,-500.0,0.00072901,120]
[343031703,1732297838071,-160.06,0.00072993,120]
[343031704,1732297838081,-843.46,0.00073197,30]
[343031705,1732297838090,-167.93,0.00073268,2]
[343031706,1732297838101,-250.0,0.00073287,120]
[343031707,1732297838112,-5093.0,0.00073326,117]
[343031708,1732297838121,-7447.9,0.00073792,60]
[343031709,1732297838130,-3878.12,0.00073955,2]
[343031710,1732297838141,-250.0,0.0007439,120]
[343031711,1732297838151,-154.18,0.00074435,120]
[343031712,1732297838160,-3924.9,0.00074685,30]
[343031713,1732297838170,-500.0,0.00074871,120]
[343031714,1732297838182,-152.18045726,0.000749,28]
[343031715,1732297838192,-15000.0,0.00075,120]
[343031716,1732297838202,-15000.0,0.00075,120]
[343031717,1732297838211,-978.51775687,0.00075042,120]
[343031718,1732297838221,-2000.0,0.00075176,120]
[343031719,1732297838230,-189.18,0.00075596,120]
[343031720,1732297838242,-500.0,0.00075706,120]
[343031721,1732297838252,-1630.9,0.00075741,2]
[343031722,1732297838261,-12010.2493,0.00075741,2]
[343031723,1732297838270,-1279.11868428,0.00075775,15]
[343031724,1732297838280,-23900.0,0.00075841,2]
[343031725,1732297838290,-304.77343659,0.00075875,15]
[343031726,1732297838299,-454.584,0.0007603,120]
[343031727,1732297838309,-500.0,0.00076923,120]
[343031728,1732297838319,-160.58,0.00077324,120]
[343031729,1732297838328,-758.29719581,0.00077384,120]
[343031730,1732297838337,-5498.0,0.000776,120]
[343031731,1732297838428,-1279.11868424,0.00078456,15]
[343031732,1732297838460,-304.77343657,0.00078544,15]
[343031733,1732297838470,-454.604,0.0007958,120]
[343031734,1732297838480,-150.1,0.00079912,2]
[343031735,1732297838492,-166.66,0.00079967,2]
[343031736,1732297838501,-501.6083526,0.0008,120]
[343031737,1732297838511,-10915.01680772,0.0008,120]
[343031738,1732297838521,-19000.0,0.0008,120]
[343031739,1732297838530,-214.66419678,0.00080701,52]
[343031740,1732297838539,-500.0,0.00080801,120]
[343031741,1732297838548,-1279.11868424,0.00081136,15]
[343031742,1732297838557,-304.77343657,0.00081214,15]
[343031743,1732297838567,-1000.0,0.00081454,120]
[343031744,1732297838576,-532.69172075,0.00082191,120]
[343031745,1732297838586,-308.93349819,0.000823,2]
[343031746,1732297838595,-575.731,0.00082397,120]
[343031747,1732297838605,-30964.6261191,0.000824,120]
[343031748,1732297838615,-611.98996891,0.00082933,120]
[343031749,1732297838625,-454.599,0.0008313,120]
[343031750,1732297838635,-832.8,0.000833,120]
[343031751,1732297838645,-50000.0,0.000834,120]
[343031752,1732297838654,-180.94,0.00083424,120]
[343031753,1732297838664,-1279.11868424,0.00083817,15]
[343031754,1732297838674,-304.77343657,0.00083883,15]
[343031755,1732297838683,-50000.0,0.000844,120]
[343031756,1732297838692,-1100.0,0.000848,30]
[343031757,1732297838701,-2393.98929021,0.00084821,74]
[343031758,1732297838711,-2393.9892902,0.00084826,74]
[343031759,1732297838721,-2393.9892902,0.00084831,74]
[343031760,1732297838731,-2300.0,0.000849,30]
[343031761,1732297838746,-1400.0,0.000849,120]
[343031762,1732297838755,-155.97,0.00084911,120]
[343031763,1732297838765,-640.37241488,0.00084911,7]
[343031764,1732297838775,-88820.97368487,0.00084921,10]
[343031765,1732297838788,-5661.16848746,0.00084921,10]
[343031766,1732297838831,-396.13036463,0.00084921,10]
[343031767,1732297838843,-292.42,0.00084921,10]
[343031768,1732297839410,-571.47561462,0.00084921,10]
[343031769,1732297839422,-652.5,0.00084921,10]
[343031770,1732297839524,-2322.43772497,0.00084921,10]
[343031771,1732297839536,-1313.10330899,0.00084921,10]
[343031772,1732297839548,-4197.2744509,0.00084921,10]
[343031773,1732297839575,-29773.90741563,0.00084921,10]
[343031775,1732297842416,-29644.76067808,0.00084921,10]
[343031776,1732297842428,-7484.5104341,0.00084921,10]
[343031778,1732297842494,-6846.75408533,0.00084921,10]
[343031779,1732297842509,-8894.52,0.00084921,10]
[343031780,1732297842521,-1770.0,0.00084921,10]
[343031781,1732297842721,-5058.78207015,0.00084921,10]
[343031782,1732297842733,-5946.84794579,0.00084921,10]
[343031783,1732297842745,-8908.10902895,0.00084921,10]
[343031784,1732297842757,-331.32,0.00084921,10]
[343031785,1732297842768,-101988.33623853,0.00084921,10]
[343031786,1732297842777,-702.99274775,0.00084921,120]
[343031787,1732297842787,-6608.10205987,0.00084931,2]
[343031788,1732297842797,-500.0,0.00084931,120]
[343031789,1732297842807,-596.64,0.00084931,60]
[343031790,1732297842816,-500.0,0.00084931,120]
[343031791,1732297842826,-500.0,0.00084931,120]
[343031792,1732297842835,-364.11837432,0.00084931,120]
[343031793,1732297842844,-500.0,0.00084931,120]
[343031794,1732297842853,-500.0,0.00084931,120]
[343031795,1732297842862,-262.44078633,0.00084931,120]
[343031796,1732297842872,-390.33,0.00084931,120]
[343031797,1732297842882,-500.0,0.00084931,120]
[343031798,1732297842891,-500.0,0.00084931,120]
[343031799,1732297842900,-192.25,0.00084931,120]
[343031800,1732297842911,-500.0,0.00084931,120]
[343031801,1732297842919,-500.0,0.00084931,120]
[343031802,1732297842930,-500.0,0.00084931,120]
[343031804,1732297842939,-187.19406056,0.00084931,120]
[343031806,1732297842948,-500.0,0.00084931,120]
[343031807,1732297842958,-500.0,0.00084931,120]
[343031809,1732297842967,-500.0,0.00084931,120]
[343031811,1732297842976,-500.0,0.00084931,120]
[343031813,1732297842985,-341.86449024,0.00084931,120]
[343031815,1732297842996,-500.0,0.00084931,120]
[343031817,1732297843005,-211.53850695,0.00084931,120]
[343031819,1732297843015,-347.68545725,0.00084931,120]
[343031820,1732297843023,-500.0,0.00084931,120]
[343031821,1732297843033,-500.0,0.00084931,120]
[343031822,1732297843045,-500.0,0.00084931,120]
[343031823,1732297843055,-412.28,0.00084931,120]
[343031824,1732297843064,-303.3388663,0.00084931,120]
[343031825,1732297843075,-348.74,0.00084931,120]
[343031826,1732297843084,-256.92,0.00084931,120]
[343031827,1732297843093,-500.0,0.00084931,120]
[343031828,1732297843105,-398.28395818,0.00084931,120]
[343031829,1732297843116,-500.0,0.00084931,120]
[343031830,1732297843125,-500.0,0.00084931,120]
[343031831,1732297843134,-500.0,0.00084931,120]
[343031832,1732297843143,-500.0,0.00084931,120]
[343031833,1732297843152,-500.0,0.00084931,120]
[343031834,1732297843161,-500.0,0.00084931,120]
[343031835,1732297843170,-354.26468998,0.00084931,120]
[343031836,1732297843181,-500.0,0.00084931,120]
[343031837,1732297843193,-500.0,0.00084931,120]
[343031838,1732297843202,-500.0,0.00084931,120]
[343031839,1732297843211,-500.0,0.00084931,120]
[343031840,1732297843220,-500.0,0.00084931,120]
[343031841,1732297843229,-500.0,0.00084931,120]
[343031842,1732297843239,-500.0,0.00084931,120]
[343031843,1732297843250,-500.0,0.00084931,120]
[343031844,1732297843259,-500.0,0.00084931,120]
[343031845,1732297843269,-500.0,0.00084931,120]
[343031846,1732297843279,-500.0,0.00084931,120]
[343031847,1732297843288,-500.0,0.00084931,120]
[343031848,1732297843300,-235.69193989,0.00084931,120]
[343031849,1732297843310,-500.0,0.00084931,120]
[343031850,1732297843320,-500.0,0.00084931,120]
[343031851,1732297843330,-500.0,0.00084931,120]
[343031852,1732297843340,-500.0,0.00084931,120]
[343031853,1732297843350,-500.0,0.00084931,120]
[343031854,1732297843360,-500.0,0.00084931,120]
[343031855,1732297843369,-500.0,0.00084931,120]
[343031856,1732297843378,-500.0,0.00084931,120]
[343031857,1732297843387,-500.0,0.00084931,120]
[343031858,1732297843397,-500.0,0.00084931,120]
[343031859,1732297843406,-500.0,0.00084931,120]
[343031860,1732297843415,-500.0,0.00084931,120]
[343031861,1732297843424,-500.0,0.00084931,120]
[343031862,1732297843433,-500.0,0.00084931,120]
[343031863,1732297843442,-500.0,0.00084931,120]
[343031864,1732297843452,-500.0,0.00084931,120]
[343031865,1732297843462,-500.0,0.00084931,120]
[343031866,1732297843471,-500.0,0.00084931,120]
[343031867,1732297843480,-409.57631477,0.00084931,120]
[343031868,1732297843492,-500.0,0.00084931,120]
[343031869,1732297843502,-500.0,0.00084931,120]
[343031870,1732297843511,-500.0,0.00084931,120]
[343031871,1732297843521,-500.0,0.00084931,120]
[343031872,1732297843530,-344.56416958,0.00084931,120]
[343031873,1732297843540,-500.0,0.00084931,120]
[343031874,1732297843549,-500.0,0.00084931,120]
[343031875,1732297843558,-500.0,0.00084931,120]
[343031876,1732297843567,-500.0,0.00084931,120]
[343031877,1732297843576,-500.0,0.00084931,120]
[343031878,1732297843586,-500.000001,0.00084931,120]
[343031879,1732297843595,-500.0,0.00084931,120]
[343031880,1732297843604,-500.0,0.00084931,120]
[343031881,1732297843614,-500.0,0.00084931,120]
[343031882,1732297843623,-500.0,0.00084931,120]
[343031883,1732297843633,-500.0,0.00084931,120]
[343031884,1732297843642,-500.0,0.00084931,120]
[343031885,1732297843651,-500.0,0.00084931,120]
[343031886,1732297843661,-500.0,0.00084931,120]
[343031887,1732297843670,-500.0,0.00084931,120]
[343031888,1732297843679,-500.0,0.00084931,120]
[343031889,1732297843689,-500.0,0.00084931,120]
[343031890,1732297843699,-500.0,0.00084931,120]
[343031891,1732297843709,-2718.02,0.00084931,120]
[343031892,1732297843718,-497.81495345,0.00084931,120]
[343031893,1732297843727,-500.0,0.00084931,120]
[343031894,1732297843737,-500.0,0.00084931,120]
[343031895,1732297843748,-500.0,0.00084931,120]
[343031896,1732297843757,-500.0,0.00084931,120]
[343031897,1732297843766,-500.0,0.00084931,120]
[343031898,1732297843782,-500.0,0.00084931,120]
[343031899,1732297843795,-637.766065,0.00084931,120]
[343031900,1732297843804,-500.0,0.00084931,120]
[343031901,1732297843814,-500.0,0.00084931,120]
[343031902,1732297843824,-500.0,0.00084931,120]
[343031903,1732297843833,-500.0,0.00084931,120]
[343031904,1732297843843,-174.02457337,0.00084931,120]
[343031905,1732297843852,-500.0,0.00084931,120]
[343031906,1732297843862,-500.0,0.00084931,120]
[343031907,1732297843872,-500.0,0.00084931,120]
[343031908,1732297843882,-500.0,0.00084931,120]
[343031909,1732297843891,-500.0,0.00084931,120]
[343031910,1732297843900,-512.42,0.00084931,120]
[343031911,1732297843910,-500.0,0.00084931,120]
[343031912,1732297843919,-500.0,0.00084931,120]
[343031913,1732297843928,-500.0,0.00084931,120]
[343031914,1732297843938,-500.0,0.00084931,120]
[343031915,1732297843947,-500.0,0.00084931,120]
[343031916,1732297843956,-505.94,0.00084931,120]
[343031917,1732297844086,-500.0,0.00084931,120]
[343031918,1732297844096,-500.0,0.00084931,120]
[343031919,1732297844109,-500.0,0.00084931,120]
[343031920,1732297844118,-500.0,0.00084931,120]
[343031921,1732297844128,-296.40257568,0.00084931,120]
[343031922,1732297844137,-500.0,0.00084931,120]
[343031923,1732297844149,-535.61,0.00084931,120]
[343031924,1732297844158,-500.0,0.00084931,120]
[343031925,1732297844167,-513.69879596,0.00084931,120]
[343031926,1732297844176,-500.0,0.00084931,120]
[343031927,1732297844187,-500.0,0.00084931,120]
[343031928,1732297844196,-500.0,0.00084931,120]
[343031929,1732297844205,-500.0,0.00084931,120]
[343031930,1732297844214,-500.0,0.00084931,120]
[343031931,1732297844224,-500.0,0.00084931,120]
[343031932,1732297844233,-500.0,0.00084931,120]
[343031933,1732297844245,-500.0,0.00084931,120]
[343031934,1732297844257,-500.0,0.00084931,120]
[343031935,1732297844267,-500.0,0.00084931,120]
[343031936,1732297844276,-500.0,0.00084931,120]
[343031937,1732297844286,-500.0,0.00084931,120]
[343031938,1732297844295,-500.0,0.00084931,120]
[343031939,1732297844305,-500.0,0.00084931,120]
[343031940,1732297844314,-500.0,0.00084931,120]
[343031941,1732297844324,-500.0,0.00084931,120]
[343031942,1732297844333,-483.83401964,0.00084931,120]
[343031943,1732297844343,-500.0,0.00084931,120]
[343031944,1732297844352,-500.0,0.00084931,120]
[343031945,1732297844361,-255.0,0.00084931,120]
[343031946,1732297844370,-500.0,0.00084931,120]
[343031947,1732297844379,-500.0,0.00084931,120]
[343031948,1732297844389,-500.0,0.00084931,120]
[343031949,1732297844399,-500.0,0.00084931,120]
[343031950,1732297844408,-500.0,0.00084931,120]
[343031951,1732297844418,-500.0,0.00084931,120]
[343031952,1732297844427,-500.0,0.00084931,120]
[343031953,1732297844437,-500.0,0.00084931,120]
[343031954,1732297844446,-500.0,0.00084931,120]
[343031955,1732297844455,-500.0,0.00084931,120]
[343031956,1732297844465,-500.0,0.00084931,120]
[343031957,1732297844475,-500.0,0.00084931,120]
[343031958,1732297844485,-556.28419081,0.00084931,120]
[343031959,1732297844497,-500.0,0.00084931,120]
[343031960,1732297844507,-500.0,0.00084931,120]
[343031961,1732297844517,-500.0,0.00084931,120]
[343031962,1732297844527,-454.007695,0.00084931,120]
[343031963,1732297844537,-400.71108304,0.00084931,120]
[343031964,1732297844546,-500.0,0.00084931,120]
[343031965,1732297844556,-500.0,0.00084931,120]
[343031966,1732297844565,-500.0,0.00084931,120]
[343031967,1732297844575,-500.0,0.00084931,120]
[343031968,1732297844584,-500.0,0.00084931,120]
[343031969,1732297844593,-500.0,0.00084931,120]
[343031970,1732297844602,-500.0,0.00084931,120]
[343031971,1732297844613,-500.0,0.00084931,120]
[343031972,1732297844623,-500.0,0.00084931,120]
[343031973,1732297844632,-500.0,0.00084931,120]
[343031974,1732297844641,-500.0,0.00084931,120]
[343031975,1732297844651,-500.0,0.00084931,120]
[343031976,1732297844660,-500.0,0.00084931,120]
[343031977,1732297844669,-500.0,0.00084931,120]
[343031978,1732297844678,-500.0,0.00084931,120]
[343031979,1732297844688,-500.0,0.00084931,120]
[343031980,1732297844697,-500.0,0.00084931,120]
[343031981,1732297844706,-500.0,0.00084931,120]
[343031982,1732297844715,-500.0,0.00084931,120]
[343031983,1732297844724,-490.111315,0.00084931,120]
[343031984,1732297844733,-500.0,0.00084931,120]
[343031985,1732297844745,-500.0,0.00084931,120]
[343031986,1732297844754,-500.0,0.00084931,120]
[343031987,1732297844763,-493.94306,0.00084931,120]
[343031988,1732297844773,-500.0,0.00084931,120]
[343031989,1732297844782,-500.0,0.00084931,120]
[343031990,1732297844791,-500.0,0.00084931,120]
[343031991,1732297844800,-1890.7,0.00084931,120]
[343031992,1732297844810,-500.0,0.00084931,120]
[343031993,1732297844819,-504.44,0.00084931,120]
[343031994,1732297844829,-500.0,0.00084931,120]
[343031995,1732297844839,-500.0,0.00084931,120]
[343031996,1732297844850,-605.5241229,0.00084931,120]
[343031997,1732297844859,-500.0,0.00084931,120]
[343031998,1732297844868,-500.0,0.00084931,120]
[343031999,1732297844878,-500.0,0.00084931,120]
[343032000,1732297844887,-500.0,0.00084931,120]
[343032001,1732297844896,-500.0,0.00084931,120]
[343032002,1732297844905,-500.0,0.00084931,120]
[343032003,1732297844914,-500.0,0.00084931,120]
[343032004,1732297844924,-492.75762603,0.00084931,120]
[343032005,1732297844933,-500.0,0.00084931,120]
[343032006,1732297844943,-500.0,0.00084931,120]
[343032007,1732297844952,-500.0,0.00084931,120]
[343032008,1732297844961,-500.0,0.00084931,120]
[343032009,1732297844970,-500.0,0.00084931,120]
[343032010,1732297844979,-242.55,0.00084931,120]
[343032011,1732297844989,-500.0,0.00084931,120]
[343032012,1732297845002,-500.0,0.00084931,120]
[343032013,1732297845012,-179.69,0.00084931,120]
[343032014,1732297845022,-500.0,0.00084931,120]
[343032015,1732297845032,-500.0,0.00084931,120]
[343032016,1732297845042,-158.65,0.00084931,120]
[343032017,1732297845051,-276.35273544,0.00084931,120]
[343032018,1732297845061,-500.0,0.00084931,120]
[343032019,1732297845071,-500.0,0.00084931,120]
[343032020,1732297845080,-500.0,0.00084931,120]
[343032021,1732297845090,-446.74792157,0.00084931,120]
[343032022,1732297845101,-163.59,0.00084931,120]
[343032023,1732297845115,-500.0,0.00084931,120]
[343032024,1732297845127,-500.0,0.00084931,120]
[343032025,1732297845137,-1248.07,0.00084931,120]
[343032026,1732297845147,-157.52190011,0.00084931,120]
[343032027,1732297845158,-500.0,0.00084931,120]
[343032028,1732297845168,-500.0,0.00084931,120]
[343032029,1732297845179,-500.0,0.00084931,120]
[343032030,1732297845190,-500.0,0.00084931,120]
[343032032,1732297845201,-500.0,0.00084931,120]
[343032034,1732297845211,-500.0,0.00084931,120]
[343032035,1732297845222,-500.0,0.00084931,120]
[343032036,1732297845232,-500.0,0.00084931,120]
[343032037,1732297845245,-500.0,0.00084931,120]
[343032038,1732297845254,-500.0,0.00084931,120]
[343032039,1732297845264,-453.81,0.00084931,120]
[343032040,1732297845274,-500.0,0.00084931,120]
[343032041,1732297845287,-500.0,0.00084931,120]
[343032042,1732297845297,-500.0,0.00084931,120]
[343032043,1732297845306,-500.0,0.00084931,120]
[343032044,1732297845317,-500.0,0.00084931,120]
[343032045,1732297845328,-239.61169611,0.00084931,120]
[343032046,1732297845338,-530.50954687,0.00084931,120]
[343032047,1732297845347,-500.0,0.00084931,120]
[343032049,1732297845356,-500.0,0.00084931,120]
[343032051,1732297845365,-500.0,0.00084931,120]
[343032053,1732297845375,-500.0,0.00084931,120]
[343032054,1732297845383,-500.0,0.00084931,120]
[343032055,1732297845393,-500.0,0.00084931,120]
[343032056,1732297845402,-500.0,0.00084931,120]
[343032058,1732297845412,-184.73640974,0.00084931,120]
[343032059,1732297845422,-500.0,0.00084931,120]
[343032061,1732297845432,-500.0,0.00084931,120]
[343032062,1732297845442,-339.06,0.00084931,120]
[343032064,1732297845452,-168.0,0.00084931,120]
[343032065,1732297845463,-500.0,0.00084931,120]
[343032066,1732297845472,-500.0,0.00084931,120]
[343032067,1732297845483,-500.0,0.00084931,120]
[343032068,1732297845495,-500.0,0.00084931,120]
[343032069,1732297845505,-631.70533344,0.00084931,120]
[343032070,1732297845516,-500.0,0.00084931,120]
[343032071,1732297845526,-500.0,0.00084931,120]
[343032072,1732297845536,-500.0,0.00084931,120]
[343032073,1732297845546,-500.0,0.00084931,120]
[343032074,1732297845556,-500.0,0.00084931,120]
[343032075,1732297845566,-500.0,0.00084931,120]
[343032076,1732297845576,-500.0,0.00084931,120]
[343032077,1732297845586,-500.0,0.00084931,120]
[343032078,1732297845596,-601.36,0.00084931,120]
[343032079,1732297845606,-500.0,0.00084931,120]
[343032080,1732297845615,-601.36,0.00084931,120]
[343032081,1732297845627,-500.0,0.00084931,120]
[343032082,1732297845636,-601.36,0.00084931,120]
[343032083,1732297845647,-500.0,0.00084931,120]
[343032084,1732297845657,-500.0,0.00084931,120]
[343032085,1732297845667,-601.36,0.00084931,120]
[343032086,1732297845676,-221.93,0.00084931,120]
[343032087,1732297845686,-601.36,0.00084931,120]
[343032088,1732297845695,-290.22,0.00084931,120]
[343032089,1732297845706,-601.36,0.00084931,120]
[343032090,1732297845716,-601.36,0.00084931,120]
[343032091,1732297845725,-601.36,0.00084931,120]
[343032092,1732297845735,-500.0,0.00084931,120]
[343032093,1732297845747,-601.36,0.00084931,120]
[343032094,1732297845757,-601.36,0.00084931,120]
[343032095,1732297845767,-601.36,0.00084931,120]
[343032096,1732297845776,-601.36,0.00084931,120]
[343032097,1732297845786,-601.36,0.00084931,120]
[343032098,1732297845796,-601.36,0.00084931,120]
[343032100,1732297845805,-601.36,0.00084931,120]
[343032102,1732297845814,-601.36,0.00084931,120]
[343032104,1732297845824,-601.36,0.00084931,120]
[343032106,1732297845834,-500.0,0.00084931,120]
[343032108,1732297845843,-601.36,0.00084931,120]
[343032110,1732297845852,-601.36,0.00084931,120]
[343032112,1732297845861,-601.36,0.00084931,120]
[343032114,1732297845871,-601.36,0.00084931,120]
[343032115,1732297845880,-601.36,0.00084931,120]
[343032117,1732297845890,-601.36,0.00084931,120]
[343032118,1732297845899,-601.41638912,0.00084931,120]
[343032120,1732297845909,-500.0,0.00084931,120]
[343032122,1732297845918,-231.62124612,0.00084931,120]
[343032158,1732297846263,-257.55270354,0.00084921,120]
[343032159,1732297846275,-464.62130227,0.00084921,120]
[343032167,1732297846584,-220.82599419,0.00084921,120]
[343032168,1732297846594,-268.37875388,0.00084931,120]
[343032169,1732297846603,-500.0,0.00084931,120]
[343032170,1732297846612,-500.0,0.00084931,120]
[343032171,1732297846621,-500.0,0.00084931,120]
[343032172,1732297846630,-500.0,0.00084931,120]
[343032173,1732297846639,-500.0,0.00084931,120]
[343032174,1732297846653,-500.0,0.00084931,120]
[343032175,1732297846663,-500.0,0.00084931,120]
[343032176,1732297846673,-500.0,0.00084931,120]
[343032177,1732297846683,-500.0,0.00084931,120]
[343032178,1732297846692,-500.0,0.00084931,120]
[343032179,1732297846701,-500.0,0.00084931,120]
[343032180,1732297846711,-500.0,0.00084931,120]
[343032181,1732297846720,-500.0,0.00084931,120]
[343032182,1732297846729,-500.0,0.00084931,120]
[343032183,1732297846739,-500.0,0.00084931,120]
[343032184,1732297846750,-500.0,0.00084931,120]
[343032185,1732297846759,-500.0,0.00084931,120]
[343032186,1732297846769,-500.0,0.00084931,120]
[343032187,1732297846778,-209.02851047,0.00084931,120]
[343032188,1732297846788,-500.0,0.00084931,120]
[343032189,1732297846797,-500.0,0.00084931,120]
[343032190,1732297846806,-500.0,0.00084931,120]
[343032191,1732297846815,-500.0,0.00084931,120]
[343032192,1732297846825,-500.0,0.00084931,120]
[343032193,1732297846834,-500.0,0.00084931,120]
[343032194,1732297846842,-500.0,0.00084931,120]
[343032195,1732297846852,-488.13744194,0.00084931,120]
[343032196,1732297846861,-500.0,0.00084931,120]
[343032197,1732297846871,-500.0,0.00084931,120]
[343032198,1732297846880,-500.0,0.00084931,120]
[343032199,1732297846889,-396.17,0.00084931,120]
[343032200,1732297846899,-500.0,0.00084931,120]
[343032201,1732297846909,-500.0,0.00084931,120]
[343032202,1732297846918,-500.0,0.00084931,120]
[343032203,1732297846927,-500.0,0.00084931,120]
[343032204,1732297846937,-281.75657865,0.00084931,120]
[343032205,1732297846946,-500.0,0.00084931,120]
[343032206,1732297846955,-500.0,0.00084931,120]
[343032207,1732297846964,-500.0,0.00084931,120]
[343032208,1732297846973,-500.0,0.00084931,120]
[343032209,1732297846983,-500.0,0.00084931,120]
[343032210,1732297846997,-500.0,0.00084931,120]
[343032211,1732297847007,-500.0,0.00084931,120]
[343032212,1732297847018,-500.0,0.00084931,120]
[343032213,1732297847028,-500.0,0.00084931,120]
[343032214,1732297847038,-500.0,0.00084931,120]
[343032215,1732297847047,-312.45043147,0.00084931,120]
[343032216,1732297847057,-500.0,0.00084931,120]
[343032217,1732297847066,-500.0,0.00084931,60]
[343032218,1732297847076,-383.32728307,0.00084931,120]
[343032219,1732297847085,-500.0,0.00084931,120]
[343032220,1732297847094,-468.20879272,0.00084931,120]
[343032221,1732297847107,-500.0,0.00084931,120]
[343032222,1732297847116,-549.68,0.00084931,120]
[343032223,1732297847126,-549.68,0.00084931,120]
[343032224,1732297847135,-549.68,0.00084931,120]
[343032225,1732297847146,-549.68,0.00084931,120]
[343032226,1732297847156,-549.68,0.00084931,120]
[343032227,1732297847166,-549.68,0.00084931,120]
[343032228,1732297847176,-549.68,0.00084931,120]
[343032229,1732297847185,-549.68,0.00084931,120]
[343032230,1732297847195,-500.0,0.00084931,120]
[343032231,1732297847205,-500.0,0.00084931,120]
[343032232,1732297847214,-549.68,0.00084931,120]
[343032233,1732297847224,-618.07,0.00084931,7]
[343032234,1732297847234,-500.0,0.00084931,120]
[343032235,1732297847244,-549.68,0.00084931,120]
[343032236,1732297847255,-549.68,0.00084931,120]
[343032237,1732297847266,-549.68,0.00084931,120]
[343032238,1732297847276,-500.0,0.00084931,120]
[343032239,1732297847286,-549.68,0.00084931,120]
[343032240,1732297847296,-549.68,0.00084931,120]
[343032241,1732297847306,-500.0,0.00084931,120]
[343032242,1732297847316,-549.68,0.00084931,120]
[343032243,1732297847327,-500.0,0.00084931,120]
[343032244,1732297847337,-549.68,0.00084931,120]
[343032245,1732297847347,-560.09,0.00084931,120]
[343032246,1732297847357,-500.0,0.00084931,120]
[343032247,1732297847367,-549.68,0.00084931,120]
[343032248,1732297847376,-520.93,0.00084931,120]
[343032249,1732297847386,-549.68,0.00084931,120]
[343032250,1732297847397,-549.68,0.00084931,120]
[343032251,1732297847407,-549.68,0.00084931,120]
[343032252,1732297847417,-549.68,0.00084931,120]
[343032253,1732297847430,-500.0,0.00084931,120]
[343032254,1732297847440,-549.68,0.00084931,120]
[343032255,1732297847450,-549.68,0.00084931,120]
[343032256,1732297847461,-179.72106261,0.00084931,120]
[343032257,1732297847471,-549.91563145,0.00084931,120]
[343032258,1732297847480,-500.0,0.00084931,120]
[343032259,1732297847490,-500.0,0.00084931,120]
[343032260,1732297847502,-287.0,0.00084931,120]
[343032261,1732297847512,-500.0,0.00084931,120]